fUSD/lending_fUSD_20260613
["ID","MTS","AMOUNT","RATE_DAILY","PERIOD"]
[424956760,1781351432000,-253.82,8.874e-05,2]
[424956761,1781351432000,-300.0,9.004e-05,2]
[424956763,1781351432000,-300.0,9.004e-05,2]
[424956762,1781351432000,-250.0,9.004e-05,2]
[424956764,1781351432000,-165.98,9.039e-05,2]
[424956765,1781351432000,-255.0,9.04e-05,2]
[424956769,1781351432000,-617.0,9.205e-05,2]
[424956804,1781351432000,-2500.0,9.737e-05,2]
[424956842,1781351432000,-4678.65,9.935e-05,2]
[424956808,1781351432000,-500.0,9.753e-05,2]
[424956848,1781351432000,-769.38,0.0001,2]
[424956837,1781351432000,-310.54,9.916e-05,2]
[424956839,1781351432000,-15629.48,9.933e-05,2]
[424956841,1781351432000,-5579.15,9.934e-05,2]
[424956840,1781351432000,-14136.02,9.933e-05,2]
[424956844,1781351432000,-305.02,9.94e-05,2]
[424956846,1781351432000,-574.4,9.946e-05,2]
[424956845,1781351432000,-433.0,9.944e-05,2]
[424956847,1781351432000,-213.29688628,9.999e-05,2]
[424956850,1781351432000,-1000.0,0.0001,2]
[424956851,1781351432000,-1000.0,0.0001,2]
[424956860,1781351432000,-4000.0,0.00010027,2]
[424956849,1781351432000,-1000.0,0.0001,2]
[424956852,1781351432000,-1000.0,0.0001,2]
[424956854,1781351432000,-1000.0,0.0001,2]
[424956859,1781351432000,-500.0,0.00010027,2]
[424956856,1781351432000,-1000.0,0.0001,2]
[424956858,1781351432000,-2000.0,0.00010008,2]
[424956855,1781351432000,-1000.0,0.0001,2]
[424956853,1781351432000,-1000.0,0.0001,2]
[424956857,1781351432000,-1000.0,0.0001,2]
[424956861,1781351432000,-350.0,0.00010109,2]
[424956862,1781351432000,-350.0,0.00010176,3]
[424956863,1781351432000,-2445.0,0.0001021,2]
[424956807,1781351432000,-305.02,9.752e-05,2]
[424956838,1781351432000,-305.02,9.923e-05,2]
[424956836,1781351432000,-305.02,9.906e-05,2]
[424956843,1781351432000,-310.54,9.936e-05,2]
[424956834,1781351432000,-4678.65,9.901e-05,2]
[424956806,1781351432000,-4678.65,9.748e-05,2]
[424956809,1781351432000,-310.54,9.763e-05,2]
[424956810,1781351432000,-305.02,9.773e-05,2]
[424956812,1781351432000,-4678.65,9.789e-05,2]
[424956811,1781351432000,-310.54,9.787e-05,2]
[424956835,1781351432000,-574.4,9.906e-05,2]
[424956814,1781351432000,-310.54,9.81e-05,2]
[424956815,1781351432000,-305.02,9.813e-05,2]
[424956816,1781351432000,-2000.0,9.82e-05,2]
[424956823,1781351432000,-383.0,9.837e-05,2]
[424956817,1781351432000,-4678.65,9.828e-05,2]
[424956824,1781351432000,-1275.0,9.837e-05,2]
[424956818,1781351432000,-310.54,9.832e-05,2]
[424956813,1781351432000,-305.02,9.793e-05,2]
[424956821,1781351432000,-1359.0,9.837e-05,2]
[424956819,1781351432000,-305.02,9.833e-05,2]
[424956832,1781351432000,-305.02,9.888e-05,2]
[424956831,1781351432000,-310.54,9.875e-05,2]
[424956829,1781351432000,-4678.65,9.865e-05,2]
[424956828,1781351432000,-81.19321698,9.863e-05,2]
[424956830,1781351432000,-305.02,9.87e-05,2]
[424956833,1781351432000,-310.54,9.896e-05,2]
[424956827,1781351432000,-310.54,9.854e-05,2]
[424956826,1781351432000,-305.02,9.851e-05,2]
[424956825,1781351432000,-934.0,9.837e-05,2]
[424956822,1781351432000,-3557.0,9.837e-05,2]
[424956820,1781351432000,-5579.15,9.834e-05,2]
[424956881,1781351433000,-151.0,0.00010544,2]
[424956875,1781351433000,-1000.0,0.0001047,2]
[424956877,1781351433000,-818.06444,0.0001049,2]
[424956880,1781351433000,-4000.0,0.00010529,2]
[424956876,1781351433000,-1000.0,0.0001047,2]
[424956879,1781351433000,-1000.0,0.000105,2]
[424956872,1781351433000,-818.06444,0.0001046,2]
[424956870,1781351433000,-818.06443,0.0001044,2]
[424956866,1781351433000,-1000.0,0.0001027,2]
[424956878,1781351433000,-620.0,0.000105,2]
[424956868,1781351433000,-482.23,0.00010337,2]
[424956867,1781351433000,-4000.0,0.00010278,2]
[424956864,1781351433000,-217.511,0.0001021,2]
[424956871,1781351433000,-818.06444,0.0001044,2]
[424956865,1781351433000,-350.27,0.00010265,2]
[424956869,1781351433000,-1125.99999999,0.00010364,2]
[424956873,1781351433000,-500.0,0.0001047,2]
[424956894,1781351433000,-413.48160874,0.00010544,2]
[424956882,1781351433000,-200.0,0.00010544,2]
[424956895,1781351433000,-947.66880428,0.00010544,2]
[424956898,1781351433000,-5530.0,0.00010544,2]
[424956896,1781351433000,-303.8818997,0.00010544,2]
[424956897,1781351433000,-584.0,0.00010544,2]
[424956893,1781351433000,-10823.49832172,0.00010544,2]
[424956874,1781351433000,-802.18629117,0.0001047,2]
[424956888,1781351433000,-1412.394603,0.00010544,2]
[424956892,1781351433000,-385.00293256,0.00010544,2]
[424956889,1781351433000,-6818.41827372,0.00010544,2]
[424956891,1781351433000,-633.29340708,0.00010544,2]
[424956890,1781351433000,-857.03856977,0.00010544,2]
[424956886,1781351433000,-818.06444,0.00010544,2]
[424956884,1781351433000,-1360.7820639,0.00010544,2]
[424956885,1781351433000,-200.0,0.00010544,2]
[424956883,1781351433000,-200.0,0.00010544,2]
[424956887,1781351433000,-818.06443,0.00010544,2]
[424956900,1781351439000,-309.0,8.186e-05,2]
[424956901,1781351439000,-856.57598021,9.592e-05,2]
[424956899,1781351439000,-318.0,8.186e-05,2]
[424956909,1781351441000,-27.25406461,8.592e-05,2]
[424956913,1781351442000,-283.74593539,8.592e-05,2]
[424956915,1781351442000,-429.42466968,9.641e-05,2]
[424956914,1781351442000,-115.14401979,9.592e-05,2]
[424956922,1781351443000,-306.86,9.601e-05,2]
[424956935,1781351443000,-6076.0,9.837e-05,2]
[424956937,1781351443000,-971.72,9.883e-05,2]
[424956939,1781351443000,-187.62015996,0.00010319,5]
[424956938,1781351443000,-971.72,9.918e-05,2]
[424956934,1781351443000,-893.94284474,9.81e-05,2]
[424956932,1781351443000,-882.57288414,9.771e-05,2]
[424956931,1781351443000,-306.86,9.743e-05,2]
[424956930,1781351443000,-89.14711586,9.771e-05,2]
[424956929,1781351443000,-443.85288414,9.731e-05,2]
[424956926,1781351443000,-971.72,9.687e-05,2]
[424956927,1781351443000,-306.86,9.71e-05,2]
[424956924,1781351443000,-542.29533032,9.641e-05,2]
[424956928,1781351443000,-527.86711586,9.731e-05,2]
[424956925,1781351443000,-306.86,9.676e-05,2]
[424956923,1781351443000,-306.86,9.639e-05,2]
[424956933,1781351443000,-77.77715526,9.81e-05,2]
[424956936,1781351443000,-971.72,9.848e-05,2]
[424956947,1781351443000,-200.0,0.00010756,2]
[424956942,1781351443000,-200.0,0.00010649,2]
[424956940,1781351443000,-151.0,0.00010544,2]
[424956957,1781351443000,-350.0,0.00010903,2]
[424956956,1781351443000,-1959.83090314,0.000109,2]
[424956958,1781351443000,-2000.0,0.00010911,2]
[424956955,1781351443000,-17043.88337231,0.00010877,2]
[424956954,1781351443000,-200.0,0.00010863,2]
[424956952,1781351443000,-200.0,0.00010863,2]
[424956953,1781351443000,-200.0,0.00010863,2]
[424956959,1781351443000,-25079.43204777,0.00010934,2]
[424956949,1781351443000,-8872.49214461,0.00010775,2]
[424956945,1781351443000,-350.0,0.00010731,2]
[424956950,1781351443000,-4000.0,0.00010779,2]
[424956946,1781351443000,-200.0,0.00010756,2]
[424956944,1781351443000,-200.0,0.00010649,2]
[424956943,1781351443000,-200.0,0.00010649,2]
[424956941,1781351443000,-72032.30831702,0.00010544,2]
[424956948,1781351443000,-200.0,0.00010756,2]
[424956967,1781351444000,-1352.32,0.00010959,2]
[424956971,1781351444000,-500.0,0.0001097,2]
[424956972,1781351444000,-1000.0,0.0001097,2]
[424956966,1781351444000,-150.0,0.00010959,2]
[424956968,1781351444000,-500.0,0.0001097,2]
[424956964,1781351444000,-150.0,0.00010959,2]
[424956960,1781351444000,-500.0,0.00010958,2]
[424956965,1781351444000,-166.66,0.00010959,2]
[424956963,1781351444000,-200.0,0.00010959,2]
[424956961,1781351444000,-200.0,0.00010959,2]
[424956962,1781351444000,-200.0,0.00010959,2]
[424956973,1781351444000,-1000.0,0.0001097,2]
[424956970,1781351444000,-500.0,0.0001097,2]
[424956975,1781351444000,-200.0,0.00010972,2]
[424956977,1781351444000,-200.0,0.00010972,2]
[424956984,1781351444000,-1000.0,0.0001107,2]
[424956989,1781351444000,-983.60528489,0.00011099,2]
[424956986,1781351444000,-350.0,0.00011092,2]
[424956983,1781351444000,-500.0,0.0001107,2]
[424956988,1781351444000,-12728.49859943,0.00011099,2]
[424956985,1781351444000,-350.0,0.00011072,3]
[424956982,1781351444000,-166.66,0.00011068,2]
[424956987,1781351444000,-56816.8913132,0.00011099,2]
[424956981,1781351444000,-1959.83090312,0.00011068,2]
[424956979,1781351444000,-500.0,0.00011029,2]
[424956978,1781351444000,-211.93,0.00011,2]
[424956980,1781351444000,-4000.0,0.0001103,2]
[424956974,1781351444000,-1000.0,0.0001097,2]
[424956976,1781351444000,-200.0,0.00010972,2]
[424957002,1781351447000,-21467.0855205,0.00011099,2]
[424956993,1781351447000,-309.0,8.592e-05,2]
[424956994,1781351447000,-306.86,9.774e-05,2]
[424956996,1781351447000,-306.86,9.834e-05,2]
[424956995,1781351447000,-306.86,9.805e-05,2]
[424956997,1781351447000,-419.0,9.837e-05,2]
[424956998,1781351447000,-2744.9194992,0.00011099,2]
[424957000,1781351447000,-1167.29135655,0.00011099,2]
[424956999,1781351447000,-83.29982496,0.00011099,2]
[424957003,1781351447000,-5556.27524377,0.00011099,2]
[424957001,1781351447000,-17642.19122762,0.00011099,2]
[424957005,1781351447000,-409.89935634,0.00011099,2]
[424957004,1781351447000,-951.8598825,0.00011099,2]
[424957014,1781351447000,-6481.90754091,0.00011099,2]
[424957011,1781351447000,-150.0,0.00011099,2]
[424957008,1781351447000,-7700.86176819,0.00011099,2]
[424957007,1781351447000,-7700.86176819,0.00011099,2]
[424957010,1781351447000,-151.0,0.00011099,2]
[424957012,1781351447000,-12955.41864814,0.00011099,2]
[424957009,1781351447000,-151.0,0.00011099,2]
[424957006,1781351447000,-782.8272856,0.00011099,2]
[424957013,1781351447000,-150.0,0.00011099,2]
[424957030,1781352339000,-212.44710486,7.336e-05,2]
[424957029,1781352339000,-150.0,7.003e-05,2]
[424957028,1781352339000,-172.44,6.669e-05,2]
[424957031,1781352434000,1273.0,9.207e-05,5]
[424957032,1781352581000,204.15612027,6.669e-05,7]
[424957033,1781352582000,204.15612027,6.803e-05,7]
[424957034,1781352583000,204.15612027,7.003e-05,7]
[424957035,1781352583000,204.15612027,7.203e-05,7]
[424957036,1781352584000,204.15612031,7.47e-05,7]
[424957071,1781352634000,-500.0,8.167e-05,2]
[424957072,1781352634000,-500.0,8.167e-05,2]
[424957074,1781352634000,-500.0,8.167e-05,2]
[424957079,1781352634000,-500.0,8.167e-05,2]
[424957080,1781352634000,-500.0,8.167e-05,2]
[424957075,1781352634000,-601.77502866,8.167e-05,2]
[424957073,1781352634000,-500.0,8.167e-05,2]
[424957076,1781352634000,-500.0,8.167e-05,2]
[424957090,1781352634000,-500.0,8.167e-05,2]
[424957077,1781352634000,-500.0,8.167e-05,2]
[424957081,1781352634000,-500.0,8.167e-05,2]
[424957082,1781352634000,-500.0,8.167e-05,2]
[424957088,1781352634000,-500.0,8.167e-05,2]
[424957086,1781352634000,-500.0,8.167e-05,2]
[424957089,1781352634000,-500.0,8.167e-05,2]
[424957087,1781352634000,-500.0,8.167e-05,2]
[424957070,1781352634000,-380.77661631,8.167e-05,2]
[424957084,1781352634000,-500.0,8.167e-05,2]
[424957078,1781352634000,-500.0,8.167e-05,2]
[424957069,1781352634000,-119.22338369,8.167e-05,2]
[424957059,1781352634000,-500.0,8.167e-05,2]
[424957063,1781352634000,-500.0,8.167e-05,2]
[424957083,1781352634000,-500.0,8.167e-05,2]
[424957049,1781352634000,-150.0,8.166e-05,2]
[424957050,1781352634000,-257.63915961,8.167e-05,2]
[424957056,1781352634000,-500.0,8.167e-05,2]
[424957051,1781352634000,-500.0,8.167e-05,2]
[424957052,1781352634000,-315.58642834,8.167e-05,2]
[424957048,1781352634000,-369.4904,8.07e-05,2]
[424957054,1781352634000,-500.0,8.167e-05,2]
[424957053,1781352634000,-294.70765334,8.167e-05,2]
[424957055,1781352634000,-183.80297502,8.167e-05,2]
[424957057,1781352634000,-500.0,8.167e-05,2]
[424957058,1781352634000,-500.0,8.167e-05,2]
[424957062,1781352634000,-41.22661631,8.167e-05,2]
[424957060,1781352634000,-500.0,8.167e-05,2]
[424957061,1781352634000,-458.77338369,8.167e-05,2]
[424957064,1781352634000,-500.0,8.167e-05,2]
[424957065,1781352634000,-500.0,8.167e-05,2]
[424957067,1781352634000,-500.0,8.167e-05,2]
[424957068,1781352634000,-500.0,8.167e-05,2]
[424957066,1781352634000,-500.0,8.167e-05,2]
[424957085,1781352634000,-500.0,8.167e-05,2]
[424957097,1781352634000,-500.0,8.167e-05,2]
[424957091,1781352634000,-500.0,8.167e-05,2]
[424957115,1781352634000,-1000.0,8.172e-05,2]
[424957117,1781352634000,-315.0,8.173e-05,2]
[424957124,1781352634000,-321.0,8.173e-05,2]
[424957122,1781352634000,-316.0,8.173e-05,2]
[424957118,1781352634000,-313.0,8.173e-05,2]
[424957119,1781352634000,-309.0,8.173e-05,2]
[424957121,1781352634000,-313.0,8.173e-05,2]
[424957126,1781352634000,-311.0,8.173e-05,2]
[424957120,1781352634000,-321.0,8.173e-05,2]
[424957123,1781352634000,-320.0,8.173e-05,2]
[424957125,1781352634000,-310.0,8.173e-05,2]
[424957133,1781352634000,-310.0,8.173e-05,2]
[424957129,1781352634000,-309.0,8.173e-05,2]
[424957131,1781352634000,-313.0,8.173e-05,2]
[424957128,1781352634000,-319.0,8.173e-05,2]
[424957132,1781352634000,-317.0,8.173e-05,2]
[424957130,1781352634000,-319.0,8.173e-05,2]
[424957134,1781352634000,-321.0,8.173e-05,2]
[424957093,1781352634000,-500.0,8.167e-05,2]
[424957113,1781352634000,-500.0,8.167e-05,2]
[424957114,1781352634000,-350.00000001,8.167e-05,2]
[424957127,1781352634000,-317.0,8.173e-05,2]
[424957111,1781352634000,-500.0,8.167e-05,2]
[424957092,1781352634000,-500.0,8.167e-05,2]
[424957094,1781352634000,-500.0,8.167e-05,2]
[424957112,1781352634000,-500.0,8.167e-05,2]
[424957095,1781352634000,-500.0,8.167e-05,2]
[424957098,1781352634000,-500.0,8.167e-05,2]
[424957104,1781352634000,-500.0,8.167e-05,2]
[424957101,1781352634000,-500.0,8.167e-05,2]
[424957099,1781352634000,-533.53055872,8.167e-05,2]
[424957105,1781352634000,-500.0,8.167e-05,2]
[424957096,1781352634000,-500.0,8.167e-05,2]
[424957103,1781352634000,-500.0,8.167e-05,2]
[424957102,1781352634000,-500.0,8.167e-05,2]
[424957116,1781352634000,-313.0,8.173e-05,2]
[424957110,1781352634000,-500.0,8.167e-05,2]
[424957107,1781352634000,-500.0,8.167e-05,2]
[424957106,1781352634000,-500.0,8.167e-05,2]
[424957108,1781352634000,-500.0,8.167e-05,2]
[424957100,1781352634000,-500.0,8.167e-05,2]
[424957109,1781352634000,-500.0,8.167e-05,2]
[424957175,1781352635000,-312.0,8.205e-05,2]
[424957174,1781352635000,-311.0,8.205e-05,2]
[424957172,1781352635000,-317.0,8.205e-05,2]
[424957170,1781352635000,-160.0,8.185e-05,2]
[424957171,1781352635000,-314.0,8.205e-05,2]
[424957177,1781352635000,-318.0,8.205e-05,2]
[424957173,1781352635000,-317.0,8.205e-05,2]
[424957178,1781352635000,-317.0,8.205e-05,2]
[424957179,1781352635000,-312.0,8.205e-05,2]
[424957169,1781352635000,-319.0,8.175e-05,2]
[424957167,1781352635000,-321.0,8.175e-05,2]
[424957176,1781352635000,-314.0,8.205e-05,2]
[424957180,1781352635000,-311.0,8.205e-05,2]
[424957191,1781352635000,-269.40838366,8.219e-05,2]
[424957185,1781352635000,-321.0,8.205e-05,2]
[424957184,1781352635000,-315.0,8.205e-05,2]
[424957181,1781352635000,-313.0,8.205e-05,2]
[424957183,1781352635000,-316.0,8.205e-05,2]
[424957186,1781352635000,-316.0,8.205e-05,2]
[424957189,1781352635000,-500.0,8.219e-05,2]
[424957187,1781352635000,-314.0,8.205e-05,2]
[424957190,1781352635000,-500.0,8.219e-05,2]
[424957188,1781352635000,-316.0,8.205e-05,2]
[424957192,1781352635000,-500.0,8.219e-05,2]
[424957194,1781352635000,-500.0,8.219e-05,2]
[424957204,1781352635000,-500.0,8.493e-05,2]
[424957168,1781352635000,-317.0,8.175e-05,2]
[424957182,1781352635000,-320.0,8.205e-05,2]
[424957166,1781352635000,-312.0,8.175e-05,2]
[424957149,1781352635000,-317.0,8.175e-05,2]
[424957155,1781352635000,-312.0,8.175e-05,2]
[424957193,1781352635000,-618.99906464,8.219e-05,2]
[424957136,1781352635000,-315.0,8.173e-05,2]
[424957137,1781352635000,-319.0,8.173e-05,2]
[424957135,1781352635000,-313.0,8.173e-05,2]
[424957138,1781352635000,-312.0,8.173e-05,2]
[424957139,1781352635000,-320.0,8.173e-05,2]
[424957140,1781352635000,-310.0,8.173e-05,2]
[424957141,1781352635000,-319.0,8.173e-05,2]
[424957142,1781352635000,-320.0,8.173e-05,2]
[424957143,1781352635000,-311.0,8.173e-05,2]
[424957144,1781352635000,-309.0,8.173e-05,2]
[424957151,1781352635000,-312.0,8.175e-05,2]
[424957146,1781352635000,-319.0,8.173e-05,2]
[424957164,1781352635000,-309.0,8.175e-05,2]
[424957145,1781352635000,-321.0,8.173e-05,2]
[424957150,1781352635000,-311.0,8.175e-05,2]
[424957148,1781352635000,-316.0,8.175e-05,2]
[424957153,1781352635000,-320.0,8.175e-05,2]
[424957154,1781352635000,-316.0,8.175e-05,2]
[424957156,1781352635000,-318.0,8.175e-05,2]
[424957160,1781352635000,-311.0,8.175e-05,2]
[424957162,1781352635000,-310.0,8.175e-05,2]
[424957163,1781352635000,-320.0,8.175e-05,2]
[424957165,1781352635000,-309.0,8.175e-05,2]
[424957161,1781352635000,-310.0,8.175e-05,2]
[424957159,1781352635000,-320.0,8.175e-05,2]
[424957157,1781352635000,-310.0,8.175e-05,2]
[424957158,1781352635000,-313.0,8.175e-05,2]
[424957147,1781352635000,-320.0,8.175e-05,2]
[424957195,1781352635000,-500.0,8.219e-05,2]
[424957152,1781352635000,-315.0,8.175e-05,2]
[424957199,1781352635000,-500.0,8.219e-05,2]
[424957230,1781352635000,-500.0,9.315e-05,2]
[424957229,1781352635000,-2000.0,9.247e-05,2]
[424957231,1781352635000,-10612.23906298,9.323e-05,2]
[424957232,1781352635000,-168.55,9.358e-05,2]
[424957233,1781352635000,-302.32,9.623e-05,2]
[424957240,1781352635000,-314.0,9.679e-05,2]
[424957234,1781352635000,-316.0,9.636e-05,2]
[424957235,1781352635000,-319.0,9.636e-05,2]
[424957198,1781352635000,-1496.77,8.219e-05,2]
[424957236,1781352635000,-2000.0,9.648e-05,2]
[424957241,1781352635000,-9785.59907663,9.681e-05,2]
[424957242,1781352635000,-302.32,9.702e-05,2]
[424957246,1781352635000,-1228.0,9.761e-05,2]
[424957239,1781352635000,-321.0,9.679e-05,2]
[424957244,1781352635000,-803.88,9.753e-05,2]
[424957247,1781352635000,-302.32,9.773e-05,2]
[424957248,1781352635000,-306.86,9.832e-05,2]
[424957251,1781352635000,-306.86,9.889e-05,2]
[424957245,1781352635000,-306.86,9.756e-05,2]
[424957249,1781352635000,-302.32,9.839e-05,2]
[424957250,1781352635000,-306.86,9.862e-05,2]
[424957253,1781352635000,-220.0,9.892e-05,2]
[424957252,1781352635000,-150.0,9.892e-05,2]
[424957254,1781352635000,-150.0,9.892e-05,2]
[424957255,1781352635000,-150.0,9.892e-05,2]
[424957258,1781352635000,-150.0,9.892e-05,2]
[424957256,1781352635000,-150.0,9.892e-05,2]
[424957257,1781352635000,-150.0,9.892e-05,2]
[424957243,1781352635000,-302.32,9.726e-05,2]
[424957238,1781352635000,-319.0,9.679e-05,2]
[424957237,1781352635000,-306.86,9.672e-05,2]
[424957228,1781352635000,-363.17124535,9.221e-05,2]
[424957201,1781352635000,-190.73,8.373e-05,2]
[424957200,1781352635000,-216.029201,8.235e-05,2]
[424957203,1781352635000,-163.25,8.479e-05,2]
[424957222,1781352635000,-255.0,8.982e-05,2]
[424957197,1781352635000,-2000.0,8.219e-05,2]
[424957202,1781352635000,-10090.2692,8.449e-05,2]
[424957205,1781352635000,-151.3701495,8.546e-05,2]
[424957208,1781352635000,-500.0,8.767e-05,2]
[424957206,1781352635000,-168.55,8.638e-05,2]
[424957211,1781352635000,-300.0,8.877e-05,2]
[424957210,1781352635000,-300.0,8.877e-05,2]
[424957209,1781352635000,-300.0,8.877e-05,2]
[424957215,1781352635000,-784.33418411,8.877e-05,2]
[424957207,1781352635000,-803.88,8.67e-05,2]
[424957196,1781352635000,-500.0,8.219e-05,2]
[424957218,1781352635000,-500.0,8.877e-05,2]
[424957217,1781352635000,-500.0,8.877e-05,2]
[424957225,1781352635000,-31817.67780712,9e-05,2]
[424957227,1781352635000,-500.0,9.041e-05,2]
[424957226,1781352635000,-67544.70148461,9e-05,2]
[424957223,1781352635000,-151.0,8.997e-05,2]
[424957221,1781352635000,-500.0,8.877e-05,2]
[424957224,1781352635000,-151.0,8.997e-05,2]
[424957220,1781352635000,-500.0,8.877e-05,2]
[424957214,1781352635000,-4000.0,8.877e-05,2]
[424957213,1781352635000,-444.46443214,8.877e-05,2]
[424957216,1781352635000,-300.0,8.877e-05,2]
[424957212,1781352635000,-300.0,8.877e-05,2]
[424957219,1781352635000,-500.0,8.877e-05,2]
[424957265,1781352636000,-302.32,9.899e-05,2]
[424957263,1781352636000,-1275.0,9.892e-05,2]
[424957261,1781352636000,-3557.0,9.892e-05,2]
[424957260,1781352636000,-150.0,9.892e-05,2]
[424957262,1781352636000,-383.0,9.892e-05,2]
[424957259,1781352636000,-150.0,9.892e-05,2]
[424957264,1781352636000,-302.33,9.898e-05,2]
[424957267,1781352636000,-302.32,9.899e-05,2]
[424957266,1781352636000,-302.32,9.899e-05,2]
[424957275,1781352636000,-572.71216125,0.0001,2]
[424957273,1781352636000,-572.71216125,0.0001,2]
[424957269,1781352636000,-306.86,9.916e-05,2]
[424957270,1781352636000,-23652.0,9.973e-05,2]
[424957268,1781352636000,-306.86,9.902e-05,2]
[424957271,1781352636000,-1956.0,9.994e-05,2]
[424957274,1781352636000,-572.71216125,0.0001,2]
[424957272,1781352636000,-797.98,0.0001,2]
[424957277,1781352636000,-50838.85889877,0.00010017,2]
[424957278,1781352636000,-245327.68889862,0.00010017,2]
[424957279,1781352636000,-1860.0,0.00010017,2]
[424957276,1781352636000,-1871.31343005,0.0001,2]
[424957323,1781352638000,-216.029201,8.237e-05,2]
[424957324,1781352638000,-599.7650669,0.00010017,2]
[424957325,1781352638000,-849.0,0.00010017,2]
[424957326,1781352638000,-402.24138296,0.00010017,2]
[424957341,1781352640000,-330.0,0.00010017,2]
[424957339,1781352640000,-42.12440471,8.219e-05,2]
[424957340,1781352640000,-1455.27348024,0.00010017,2]
[424957338,1781352640000,-457.87559529,8.219e-05,2]
[424957371,1781352643000,-500.0,0.00010544,2]
[424957369,1781352643000,-151.0,0.00010544,2]
[424957368,1781352643000,-151.0,0.00010544,2]
[424957370,1781352643000,-500.0,0.00010544,2]
[424957366,1781352643000,-151.0,0.00010544,2]
[424957374,1781352643000,-500.0,0.00010544,2]
[424957377,1781352643000,-500.0,0.00010544,2]
[424957384,1781352643000,-500.0,0.00010544,2]
[424957367,1781352643000,-155.450133,0.00010544,2]
[424957375,1781352643000,-500.0,0.00010544,2]
[424957378,1781352643000,-500.0,0.00010544,2]
[424957376,1781352643000,-500.0,0.00010544,2]
[424957381,1781352643000,-500.0,0.00010544,2]
[424957373,1781352643000,-500.0,0.00010544,2]
[424957363,1781352643000,-3727.28,0.00010278,2]
[424957364,1781352643000,-3727.28,0.00010529,2]
[424957372,1781352643000,-500.0,0.00010544,2]
[424957350,1781352643000,-1226.85239246,0.00010017,2]
[424957351,1781352643000,-1251.03,0.00010017,2]
[424957352,1781352643000,-693.72501369,0.00010017,2]
[424957353,1781352643000,-159271.84971221,0.00010017,2]
[424957355,1781352643000,-761.357904,0.00010017,2]
[424957354,1781352643000,-151.0,0.00010017,2]
[424957365,1781352643000,-151.0,0.00010544,2]
[424957362,1781352643000,-2000.0,0.00010274,2]
[424957360,1781352643000,-168.55,0.00010078,2]
[424957361,1781352643000,-250.0,0.00010271,2]
[424957357,1781352643000,-761.357904,0.00010017,2]
[424957358,1781352643000,-761.357904,0.00010017,2]
[424957359,1781352643000,-3727.28,0.00010027,2]
[424957380,1781352643000,-500.0,0.00010544,2]
[424957356,1781352643000,-761.357904,0.00010017,2]
[424957379,1781352643000,-500.0,0.00010544,2]
[424957383,1781352643000,-500.0,0.00010544,2]
[424957385,1781352643000,-500.0,0.00010544,2]
[424957402,1781352643000,-500.0,0.00010544,2]
[424957406,1781352643000,-500.0,0.00010544,2]
[424957382,1781352643000,-500.0,0.00010544,2]
[424957407,1781352643000,-500.0,0.00010544,2]
[424957424,1781352643000,-500.0,0.00010544,2]
[424957425,1781352643000,-500.0,0.00010544,2]
[424957414,1781352643000,-500.0,0.00010544,2]
[424957416,1781352643000,-500.0,0.00010544,2]
[424957418,1781352643000,-500.0,0.00010544,2]
[424957421,1781352643000,-500.0,0.00010544,2]
[424957423,1781352643000,-500.0,0.00010544,2]
[424957420,1781352643000,-500.0,0.00010544,2]
[424957419,1781352643000,-500.0,0.00010544,2]
[424957422,1781352643000,-500.0,0.00010544,2]
[424957426,1781352643000,-500.0,0.00010544,2]
[424957401,1781352643000,-500.0,0.00010544,2]
[424957411,1781352643000,-500.0,0.00010544,2]
[424957404,1781352643000,-500.0,0.00010544,2]
[424957409,1781352643000,-500.0,0.00010544,2]
[424957388,1781352643000,-500.0,0.00010544,2]